bitfinex-derivatives/quotes_SOLF0:USTF0_20220108
["timestamp","ask_amount","ask_price","bid_price","bid_amount"]
[1641616623566,2.62689093,140.16,140.12,7.12732975]
[1641616623867,5.03440207,140.17,140.14,27.66479]
[1641616624464,2.62689093,140.15,140.14,27.66479]
[1641616624764,5.03440207,140.17,140.14,27.66479]
[1641616624965,2.62689093,140.16,140.14,27.66479]
[1641616625664,2.62689093,140.15,140.14,27.66479]
[1641616625865,2.62689093,140.16,140.14,27.66479]
[1641616626068,5.03440207,140.17,140.14,27.66479]
[1641616626766,5.03440207,140.17,140.12,7.12732975]
[1641616627167,5.03440207,140.16,140.12,7.12732975]
[1641616627766,5.03440207,140.16,140.15,27.66479]
[1641616627967,2.62689093,140.17,140.15,27.66479]
[1641616628167,2.62689093,140.16,140.15,27.66479]
[1641616628367,2.62689093,140.18,140.15,27.66479]
[1641616628967,5.03440207,140.19,140.15,27.66479]
[1641616629167,7.661293,140.19,140.15,27.66479]
[1641616629769,5.03440207,140.19,140.15,27.66479]
[1641616629970,7.661293,140.19,140.15,27.66479]
[1641616630168,5.03440207,140.19,140.16,1.37310907]
[1641616630568,5.03440207,140.19,140.17,1.37310907]
[1641616630769,15.0852487,140.22,140.17,8.88810907]
[1641616631172,83.51373963,140.25,140.18,1.37310907]
[1641616631371,2.62689093,140.24,140.17,8.88810907]
[1641616631772,2.62689093,140.24,140.18,1.37310907]
[1641616631971,2.62689093,140.24,140.19,27.66479]
[1641616632372,17.71213963,140.25,140.19,27.66479]
[1641616632571,3.33665955,140.23,140.19,29.03789907]
[1641616632773,3.33665955,140.23,140.19,34.7885656]
[1641616633374,17.71213963,140.26,140.19,34.7885656]
[1641616633576,2.62689093,140.26,140.19,34.7885656]
[1641616633875,50.0017487,140.28,140.19,34.7885656]
[1641616634175,4.04971027,140.27,140.19,34.7885656]
[1641616634574,2.62689093,140.25,140.19,34.7885656]
[1641616634974,2.62689093,140.25,140.19,7.1237756]
[1641616636075,2.62689093,140.25,140.2,27.66479]
[1641616636675,15.0852487,140.27,140.2,27.66479]
[1641616636977,2.62689093,140.24,140.2,27.66479]
[1641616637175,6.11,140.26,140.2,27.66479]
[1641616637375,2.62689093,140.23,140.2,27.66479]
[1641616638077,6.11,140.26,140.2,27.66479]
[1641616638277,2.62689093,140.22,140.2,27.66479]
[1641616639478,2.62689093,140.22,140.19,7.1237756]
[1641616639677,15.0852487,140.27,140.19,7.1237756]
[1641616639877,15.0852487,140.27,140.2,27.66479]
[1641616640577,2.62689093,140.26,140.2,27.66479]
[1641616641478,50.0017487,140.28,140.2,27.66479]
[1641616641679,15.0852487,140.28,140.2,27.66479]
[1641616641978,15.0852487,140.28,140.2,34.92179]
[1641616642379,3.33179477,140.28,140.2,34.92179]
[1641616643281,3.33179477,140.28,140.2,7.257]
[1641616643482,3.33179477,140.28,140.2,8.63010907]
[1641616643682,3.33179477,140.28,140.2,7.257]
[1641616643884,2.62689093,140.27,140.2,7.257]
[1641616644286,2.62689093,140.27,140.23,27.66479]
[1641616644585,3.33179477,140.28,140.23,27.66479]
[1641616644785,47.8300487,140.29,140.23,27.66479]
[1641616644985,2.62689093,140.28,140.23,27.66479]
[1641616645385,2.62689093,140.27,140.23,27.66479]
[1641616645587,5.95672806,140.28,140.23,27.66479]
[1641616645788,3.32983713,140.28,140.23,27.66479]
[1641616646188,2.62689093,140.25,140.23,27.66479]
[1641616646390,8.81089093,140.25,140.23,27.66479]
[1641616647089,6.184,140.25,140.23,27.66479]
[1641616647290,8.81089093,140.25,140.23,27.66479]
[1641616647491,2.62689093,140.25,140.23,27.66479]
[1641616648091,47.8300487,140.29,140.23,27.66479]
[1641616648292,2.62689093,140.24,140.23,27.66479]
[1641616648692,47.8300487,140.29,140.23,27.66479]
[1641616648894,2.62689093,140.24,140.23,27.66479]
[1641616653597,2.62689093,140.24,140.2,27.66479]
[1641616654697,2.62689093,140.23,140.2,27.66479]
[1641616654898,4.0,140.27,140.2,27.66479]
[1641616655197,2.62689093,140.23,140.2,27.66479]
[1641616655698,2.62689093,140.23,140.19,7.1237756]
[1641616656600,2.62689093,140.24,140.2,27.66479]
[1641616656800,1.70268127,140.24,140.2,34.78279]
[1641616658104,1.70268127,140.23,140.2,34.78279]
[1641616659004,1.70268127,140.23,140.21,1.70728604]
[1641616659605,15.0852487,140.27,140.21,1.70728604]
[1641616660006,1.70268127,140.24,140.21,1.70728604]
[1641616660406,1.70268127,140.26,140.21,1.70728604]
[1641616660606,15.0852487,140.27,140.25,27.66479]
[1641616660807,16.78792997,140.27,140.25,34.72179]
[1641616661211,15.0852487,140.27,140.25,34.72179]
[1641616662310,1.70268127,140.28,140.25,27.66479]
[1641616663111,15.0852487,140.3,140.25,34.7852685]
[1641616663513,16.78792997,140.3,140.25,37.08258723]
[1641616663713,16.78792997,140.3,140.25,34.7852685]
[1641616664616,35.8117,140.32,140.26,1.70632198]
[1641616664814,1.70268127,140.27,140.26,1.70632198]
[1641616665113,5.182,140.28,140.26,1.70632198]
[1641616665314,5.182,140.28,140.25,34.7852685]
[1641616666314,1.70268127,140.29,140.25,34.7852685]
[1641616667016,39.8117,140.32,140.25,34.7852685]
[1641616667316,54.8969487,140.32,140.25,34.7852685]
[1641616667715,1.70268127,140.28,140.25,34.7852685]
[1641616670221,6.394,140.29,140.25,34.7852685]
[1641616670419,1.70268127,140.27,140.25,34.7852685]
[1641616670621,1.70268127,140.29,140.25,34.7852685]
[1641616671019,50.8969487,140.32,140.25,34.7852685]
[1641616671218,1.70268127,140.28,140.25,34.7852685]
[1641616671419,1.70268127,140.27,140.25,34.7852685]
[1641616671619,6.731,140.28,140.25,34.7852685]
[1641616671620,6.731,140.28,140.25,27.66479]
[1641616671821,1.70268127,140.27,140.25,27.66479]
[1641616672020,6.731,140.28,140.25,27.66479]
[1641616672221,1.70268127,140.26,140.25,27.66479]
[1641616673022,1.70268127,140.26,140.23,7.12174625]
[1641616673425,6.731,140.28,140.23,7.12174625]
[1641616673626,1.70268127,140.24,140.23,7.12174625]
[1641616673826,6.731,140.28,140.23,7.12174625]
[1641616674328,1.70268127,140.24,140.23,7.12174625]
[1641616675130,4.0,140.3,140.23,7.12174625]
[1641616675331,19.0852487,140.3,140.22,27.66479]
[1641616675729,15.0852487,140.3,140.22,27.66479]
[1641616675929,1.70268127,140.23,140.22,27.66479]
[1641616676933,1.70268127,140.24,140.22,27.66479]
[1641616677132,50.0630487,140.28,140.22,27.66479]
[1641616677532,1.70268127,140.26,140.22,27.66479]
[1641616679234,1.70268127,140.28,140.22,37.08436221]
[1641616679434,1.70268127,140.28,140.24,7.12098554]
[1641616679833,15.0852487,140.3,140.24,7.12098554]
[1641616680036,1.70268127,140.28,140.24,7.12098554]
[1641616680235,53.0773487,140.32,140.24,7.12098554]
[1641616680635,1.70268127,140.25,140.24,7.12098554]
[1641616681239,1.70268127,140.27,140.24,7.12098554]
[1641616681439,7.33693447,140.31,140.24,7.12098554]
[1641616681640,1.70268127,140.27,140.24,7.12098554]
[1641616681938,7.33693447,140.31,140.24,7.12098554]
[1641616682138,3.33693447,140.3,140.24,7.12098554]
[1641616682538,1.70268127,140.26,140.24,7.12098554]
[1641616682740,1.70268127,140.25,140.22,27.66479]
[1641616682939,35.2815,140.28,140.2,34.78780446]
[1641616683138,1.70268127,140.22,140.2,34.78780446]
[1641616683339,4.0,140.26,140.2,34.78780446]
[1641616683640,1.70268127,140.21,140.19,15.0852487]
[1641616683838,27.66479,140.27,140.19,15.0852487]
[1641616683839,1.70268127,140.2,140.19,15.0852487]
[1641616684138,1.70268127,140.2,140.17,22.21003941]
[1641616684939,1.70268127,140.2,140.18,1.70495481]
[1641616685140,34.7062,140.24,140.18,1.70495481]
[1641616685941,1.70268127,140.2,140.18,1.70495481]
[1641616686241,34.7062,140.24,140.18,1.70495481]
[1641616686441,1.70268127,140.21,140.18,1.70495481]
[1641616687041,34.7062,140.24,140.18,1.70495481]
[1641616687241,1.70268127,140.21,140.18,1.70495481]
[1641616687842,34.7062,140.24,140.18,1.70495481]
[1641616688044,1.70268127,140.19,140.18,1.70495481]
[1641616688845,1.70268127,140.21,140.18,1.70495481]
[1641616689244,34.7062,140.24,140.19,27.66479]
[1641616689443,1.70268127,140.23,140.19,27.66479]
[1641616689643,34.7062,140.24,140.19,27.66479]
[1641616690145,1.70268127,140.22,140.2,1.70495481]
[1641616690744,27.66479,140.27,140.2,1.70495481]
[1641616690946,1.70268127,140.23,140.2,6.74638749]
[1641616691146,1.70268127,140.22,140.2,6.74638749]
[1641616691644,1.70268127,140.22,140.21,5.04143268]
[1641616693848,1.70268127,140.22,140.2,1.70495481]
[1641616694248,4.0,140.23,140.2,1.70495481]
[1641616694648,1.70268127,140.21,140.2,1.70495481]
[1641616694848,5.70268127,140.21,140.2,1.70495481]
[1641616695049,1.70268127,140.21,140.18,22.99096648]
[1641616695348,1.70268127,140.21,140.18,15.0852487]
[1641616695548,1.70268127,140.21,140.15,15.0852487]
[1641616695749,15.0852487,140.26,140.15,15.0852487]
[1641616695949,1.70268127,140.18,140.15,15.0852487]
[1641616696349,1.70268127,140.18,140.14,22.98963256]
[1641616697349,1.70268127,140.2,140.14,22.98963256]
[1641616697549,1.70268127,140.2,140.16,34.79008837]
[1641616697950,1.70268127,140.2,140.16,49.87533707]
[1641616698149,4.0,140.25,140.16,49.87533707]
[1641616698751,4.0,140.25,140.16,34.79008837]
[1641616698949,4.0,140.25,140.16,40.75708837]
[1641616699250,4.0,140.25,140.16,68.42187837]
[1641616699450,4.0,140.25,140.16,83.50712707]
[1641616700453,4.0,140.25,140.17,22.99116956]
[1641616700856,60.35109,140.27,140.17,22.99116956]
[1641616701053,32.6863,140.27,140.19,7.1237756]
[1641616701258,32.6863,140.27,140.22,27.66479]
[1641616702557,32.6863,140.27,140.22,34.06779]
[1641616703157,15.0852487,140.3,140.22,34.06779]
[1641616703358,15.0852487,140.3,140.25,27.66479]
[1641616703557,15.0852487,140.3,140.25,35.18279]
[1641616703858,15.0852487,140.3,140.25,7.518]
[1641616704256,15.0852487,140.3,140.26,7.120225]
[1641616705258,34.9656,140.32,140.26,7.120225]
[1641616705458,34.9656,140.32,140.26,34.785015]
[1641616706659,38.9656,140.32,140.26,34.785015]
[1641616707162,34.9656,140.32,140.26,34.785015]
[1641616707365,38.9656,140.32,140.26,34.785015]
[1641616709268,4.0,140.29,140.26,34.785015]
[1641616709966,38.9656,140.32,140.26,7.120225]
[1641616710366,34.9656,140.32,140.26,7.120225]
[1641616710568,4.0,140.27,140.24,27.66479]
[1641616711069,50.0508487,140.32,140.24,27.66479]
[1641616711470,50.0508487,140.32,140.25,7.1204785]
[1641616712070,34.9656,140.32,140.25,7.1204785]
[1641616713372,34.9656,140.32,140.25,13.8734785]
[1641616715875,34.9656,140.32,140.26,27.66479]
[1641616716576,4.0,140.33,140.27,7.11946462]
[1641616717675,60.02849,140.34,140.27,7.11946462]
[1641616718076,32.3637,140.34,140.27,7.11946462]
[1641616718676,60.02849,140.34,140.27,7.11946462]
[1641616719479,2.58888513,140.33,140.28,1.41111487]
[1641616721179,2.58888513,140.33,140.27,7.11946462]
[1641616722880,2.58888513,140.33,140.28,1.41111487]
[1641616723882,12.4468163,140.4,140.32,15.11642471]
[1641616724084,0.57512506,140.4,140.39,28.0]
[1641616724286,39.51081292,140.44,140.39,34.124]
[1641616724484,5.59043952,140.44,140.43,4.0]
[1641616724687,5.59043952,140.44,140.43,9.581]
[1641616724885,5.59043952,140.44,140.43,64.91058]
[1641616725087,5.59043952,140.44,140.43,68.91058]
[1641616725285,4.85043952,140.44,140.43,68.91058]
[1641616725484,101.02478609,140.53,140.43,68.91058]
[1641616725687,69.8488,140.57,140.47,4.0]
[1641616726788,69.8488,140.57,140.53,27.66479]
[1641616726988,27.66479,140.61,140.53,27.66479]
[1641616727289,4.04155091,140.6,140.53,27.66479]
[1641616727790,4.04155091,140.61,140.53,27.66479]
[1641616731692,4.04155091,140.61,140.53,32.56079]
[1641616732993,24.04155091,140.61,140.53,32.56079]
[1641616733194,24.04155091,140.61,140.51,27.66479]
[1641616733392,4.04155091,140.6,140.51,27.66479]
[1641616734394,28.29298917,140.61,140.51,27.66479]
[1641616734896,27.66479,140.59,140.51,27.66479]
[1641616735094,28.29298917,140.61,140.51,27.66479]
[1641616735294,4.04155091,140.58,140.51,27.66479]
[1641616735996,20.0,140.59,140.49,27.66479]
[1641616736196,20.0,140.55,140.38,4.0]
[1641616736396,34.0558,140.54,140.39,4.0]
[1641616736599,34.0558,140.54,140.43,4.0]
[1641616736798,34.0558,140.54,140.44,4.0]
[1641616736998,4.04155091,140.53,140.46,27.66479]
[1641616738700,4.04155091,140.53,140.44,27.66479]
[1641616742506,10.93955091,140.53,140.41,27.66479]
[1641616743007,4.04155091,140.52,140.41,27.66479]
[1641616743207,27.66479,140.48,140.41,27.66479]
[1641616743407,32.44979,140.48,140.41,27.66479]
[1641616743608,32.44979,140.48,140.38,4.0]
[1641616744009,4.04155091,140.47,140.38,4.0]
[1641616747010,4.04155091,140.47,140.42,4.0]
[1641616747211,4.04155091,140.47,140.42,27.66479]
[1641616747411,27.66479,140.53,140.42,27.66479]
[1641616747412,4.04155091,140.52,140.42,27.66479]
[1641616747813,4.04155091,140.52,140.42,31.66479]
[1641616748013,4.04155091,140.52,140.42,27.66479]
[1641616751419,4.04155091,140.52,140.45,27.66479]
[1641616752823,4.04155091,140.52,140.41,4.0]
[1641616753122,3.31458296,140.51,140.41,4.0]
[1641616753524,3.31458296,140.51,140.44,27.66479]
[1641616754824,5.02533501,140.48,140.44,27.66479]
[1641616757425,5.02533501,140.48,140.44,31.66479]
[1641616757627,5.02533501,140.48,140.44,27.66479]
[1641616758027,5.02533501,140.48,140.44,31.66479]
[1641616758426,5.02533501,140.48,140.46,4.0]
[1641616758926,5.02533501,140.49,140.46,4.0]
[1641616759126,5.02533501,140.49,140.44,27.66479]
[1641616759326,5.02533501,140.49,140.48,4.0]
[1641616759527,5.02533501,140.49,140.48,31.66479]
[1641616759928,5.02533501,140.51,140.48,31.66479]
[1641616760329,5.02533501,140.51,140.48,27.66479]
[1641616761532,5.02533501,140.51,140.46,4.0]
[1641616762332,5.02533501,140.51,140.45,5.02533501]
[1641616762631,5.02533501,140.5,140.44,32.69012501]
[1641616763332,5.02533501,140.51,140.46,5.02533501]
[1641616763531,5.02533501,140.51,140.48,27.66479]
[1641616764936,5.02533501,140.51,140.48,34.46979]
[1641616766240,5.02533501,140.51,140.48,6.805]
[1641616766439,5.02533501,140.5,140.46,5.02533501]
[1641616767437,5.02533501,140.48,140.44,27.66479]
[1641616768038,5.02533501,140.48,140.43,5.02533501]
[1641616768239,10.52833501,140.48,140.43,5.02533501]
[1641616768439,5.02533501,140.47,140.42,5.02533501]
[1641616769342,5.02533501,140.44,140.4,27.66479]
[1641616770842,5.02533501,140.44,140.4,31.66479]
[1641616771245,5.02533501,140.45,140.4,36.69012501]
[1641616772245,5.02533501,140.47,140.42,5.02533501]
[1641616772945,5.02533501,140.47,140.41,6.73868767]
[1641616773649,5.02533501,140.46,140.41,6.73868767]
[1641616774347,5.02533501,140.47,140.42,5.02533501]
[1641616775648,5.02533501,140.46,140.41,10.73868767]
[1641616776148,5.02533501,140.46,140.42,4.0]
[1641616776349,5.02533501,140.46,140.43,4.0]
[1641616776551,5.02533501,140.46,140.45,4.0]
[1641616776750,5.02533501,140.47,140.45,4.0]
[1641616776952,5.02533501,140.47,140.42,12.07733501]
[1641616777450,5.02533501,140.49,140.45,5.02533501]
[1641616778252,5.03683646,140.48,140.43,6.73970999]
[1641616778753,5.03683646,140.48,140.41,42.4613]
[1641616778754,5.03683646,140.48,140.41,38.4613]
[1641616778953,5.03683646,140.48,140.4,15.07600504]
[1641616779354,37.1127,140.5,140.4,15.07600504]
[1641616779557,52.18870504,140.5,140.39,15.07600504]
[1641616779755,27.66479,140.47,140.39,19.07600504]
[1641616779956,90.06850504,140.5,140.4,4.0]
[1641616780256,15.07600504,140.48,140.4,4.0]
[1641616780555,15.07600504,140.48,140.38,63.40979]
[1641616780756,15.07600504,140.48,140.42,4.0]
[1641616781256,74.9925,140.5,140.42,4.0]
[1641616781455,74.9925,140.5,140.44,4.0]
[1641616781657,37.1127,140.5,140.43,4.0]
[1641616782061,56.18870504,140.5,140.42,25.1092054]
[1641616782256,52.18870504,140.5,140.42,25.1092054]
[1641616782456,4.0,140.48,140.42,25.1092054]
[1641616782858,56.18870504,140.5,140.42,25.1092054]
[1641616783959,15.07600504,140.5,140.42,25.1092054]
[1641616784961,15.07600504,140.51,140.42,25.1092054]
[1641616785363,15.07600504,140.51,140.42,29.1092054]
[1641616785764,15.07600504,140.51,140.47,27.66479]
[1641616786768,4.0,140.54,140.47,27.66479]
[1641616787170,4.0,140.53,140.47,27.66479]
[1641616787768,4.0,140.53,140.43,50.37750504]
[1641616787967,4.0,140.54,140.43,50.37750504]
[1641616788170,4.0,140.54,140.43,54.37750504]
[1641616788368,15.07600504,140.53,140.43,39.3015]
[1641616789069,15.07600504,140.53,140.44,4.0]
[1641616789270,4.0,140.54,140.44,26.99817392]
[1641616789671,4.0,140.54,140.44,22.99817392]
[1641616789869,4.0,140.54,140.48,27.66479]
[1641616795176,4.0,140.54,140.45,5.568]
[1641616795875,4.0,140.54,140.5,27.66479]
[1641616796775,52.46340504,140.58,140.5,27.66479]
[1641616796977,4.0,140.51,140.44,15.07600504]
[1641616797676,4.0,140.52,140.44,15.07600504]
[1641616797876,27.66479,140.51,140.42,27.66479]
[1641616798979,42.74079504,140.53,140.42,31.66479]
[1641616799682,27.66479,140.53,140.42,27.66479]
[1641616800483,27.66479,140.53,140.42,31.66479]
[1641616800681,27.66479,140.53,140.42,54.65174142]
[1641616801182,27.66479,140.53,140.42,50.65174142]
[1641616801381,27.66479,140.53,140.42,42.74079504]
[1641616802283,27.66479,140.53,140.42,27.66479]
[1641616804384,4.0,140.51,140.42,27.66479]
[1641616804590,4.0,140.51,140.4,78.93819504]
[1641616805086,4.0,140.5,140.4,78.93819504]
[1641616805487,49.84579504,140.53,140.4,63.86219]
[1641616805488,4.0,140.51,140.4,63.86219]
[1641616805887,15.07600504,140.52,140.4,63.86219]
[1641616806087,27.66479,140.5,140.4,63.86219]
[1641616806687,15.07600504,140.52,140.4,63.86219]
[1641616806888,15.07600504,140.52,140.41,4.0]
[1641616807288,27.66479,140.53,140.41,15.07600504]
[1641616807493,27.66479,140.53,140.41,22.99363132]
[1641616808090,27.66479,140.53,140.42,15.07600504]
[1641616808890,4.0,140.5,140.41,22.99363132]
[1641616809189,9.914,140.5,140.41,22.99363132]
[1641616809689,5.914,140.5,140.41,15.07600504]
[1641616809890,5.914,140.5,140.4,106.60298504]
[1641616810589,42.74079504,140.53,140.4,106.60298504]
[1641616811690,27.66479,140.53,140.41,22.99710805]
[1641616812391,42.74079504,140.53,140.41,22.99710805]
[1641616812792,4.0,140.5,140.41,22.99710805]
[1641616812991,5.683,140.52,140.41,22.99710805]
[1641616813191,5.683,140.52,140.41,15.07600504]
[1641616813393,20.75900504,140.52,140.4,106.60298504]
[1641616813992,24.75900504,140.52,140.4,106.60298504]
[1641616815392,20.75900504,140.52,140.4,106.60298504]
[1641616815791,4.0,140.49,140.4,106.60298504]
[1641616816093,27.66479,140.5,140.4,106.60298504]
[1641616816294,4.0,140.48,140.4,51.27340504]
[1641616816495,4.0,140.48,140.36,43.80898519]
[1641616816496,4.0,140.44,140.36,39.80898519]
[1641616816696,8.872,140.44,140.36,39.80898519]
[1641616817094,4.872,140.44,140.36,39.80898519]
[1641616817395,4.872,140.44,140.33,38.9986]
[1641616818198,27.66479,140.42,140.34,27.66479]
[1641616819499,27.66479,140.42,140.35,1.70973845]
[1641616820599,65.36149,140.45,140.35,1.70973845]
[1641616820799,65.36149,140.45,140.36,4.0]
[1641616820998,65.36149,140.45,140.38,4.0]
[1641616820999,27.66479,140.45,140.38,4.0]
[1641616821403,37.8272,140.47,140.38,4.0]
[1641616821599,37.8272,140.47,140.38,42.7463]
[1641616822200,37.8272,140.47,140.4,27.66479]
[1641616823403,37.8272,140.47,140.41,1.70973845]
[1641616824101,37.492,140.48,140.41,1.70973845]
[1641616827004,35.5651,140.51,140.42,4.0]
[1641616827205,35.5651,140.51,140.42,38.3848]
[1641616827708,35.5651,140.51,140.43,1.70973845]
[1641616828407,35.5651,140.51,140.44,27.66479]
[1641616833414,3.32043418,140.5,140.44,27.66479]
[1641616836318,3.32043418,140.5,140.44,175.07222408]
[1641616836515,3.32043418,140.5,140.44,202.73701408]
[1641616837716,3.32043418,140.5,140.44,206.73701408]
[1641616837917,3.32043418,140.5,140.46,7.1100999]
[1641616838118,39.80898519,140.55,140.48,4.0]
[1641616838320,3.31863891,140.52,140.48,6.323]
[1641616838519,3.31863891,140.52,140.5,27.66479]
[1641616839020,39.80898519,140.58,140.51,4.0]
[1641616839223,39.80898519,140.58,140.52,4.0]
[1641616839419,39.80898519,140.58,140.53,4.0]
[1641616839619,5.02945363,140.55,140.52,4.0]
[1641616840120,5.02945363,140.55,140.54,4.0]
[1641616840320,39.80898519,140.61,140.54,4.0]
[1641616840521,39.80898519,140.61,140.6,55.32958]
[1641616840721,41.3407,140.67,140.6,55.32958]
[1641616840921,39.80898519,140.68,140.6,55.32958]
[1641616841723,12.16150034,140.68,140.6,55.32958]
[1641616842722,38.3958,140.69,140.6,55.32958]
[1641616842924,38.3958,140.69,140.6,47.25374097]
[1641616843425,4.03844018,140.68,140.6,47.25374097]
[1641616844229,4.03844018,140.68,140.6,19.58895097]
[1641616845626,38.3958,140.69,140.6,23.58895097]
[1641616845827,27.66479,140.7,140.6,23.58895097]
[1641616845828,27.66479,140.7,140.62,4.0]
[1641616846128,27.66479,140.7,140.63,4.0]
[1641616846327,27.66479,140.7,140.64,7.10101189]
[1641616846532,27.66479,140.7,140.65,4.0]
[1641616847027,27.66479,140.72,140.65,4.0]
[1641616847227,27.66479,140.72,140.67,4.0]
[1641616847427,39.80898519,140.76,140.68,4.0]
[1641616847628,40.7539,140.79,140.67,7.566]
[1641616847629,14.94777306,140.77,140.67,18.66524748]
[1641616847830,14.94777306,140.77,140.68,4.0]
[1641616848028,4.03596184,140.76,140.69,11.09823964]
[1641616848431,4.03596184,140.76,140.71,7.09723208]
[1641616848630,14.94777306,140.77,140.71,46.51102208]
[1641616848829,14.94777306,140.77,140.71,42.51102208]
[1641616849030,27.66479,140.8,140.71,42.51102208]
[1641616849431,4.03535612,140.79,140.71,42.51102208]
[1641616850032,4.03535612,140.79,140.73,4.0]
[1641616850234,4.03535612,140.79,140.71,46.51102208]
[1641616850435,4.03535612,140.79,140.71,42.51102208]
[1641616850633,4.03535612,140.79,140.71,34.76202208]
[1641616850634,11.70335612,140.79,140.71,34.76202208]
[1641616850833,11.70335612,140.79,140.71,27.66479]
[1641616851034,11.70335612,140.79,140.69,174.8925615]
[1641616851235,4.03535612,140.78,140.69,174.8925615]
[1641616851636,4.03535612,140.78,140.7,4.0]
[1641616851835,4.03535612,140.78,140.71,7.09723208]
[1641616852236,4.03535612,140.79,140.72,4.0]
[1641616852435,4.03535612,140.79,140.73,4.0]
[1641616852635,4.03535612,140.79,140.75,27.66479]
[1641616852836,4.03535612,140.81,140.75,27.66479]
[1641616854237,4.03535612,140.83,140.75,27.66479]
[1641616854738,4.03535612,140.8,140.78,7.09395949]
[1641616854939,2.00569976,140.8,140.79,4.0]
[1641616855138,27.66479,140.85,140.78,7.09395949]
[1641616856344,4.03379313,140.84,140.79,0.80675863]
[1641616859046,11.35179313,140.84,140.76,0.80675863]
[1641616859245,4.0,140.83,140.8,0.80675863]
[1641616859444,4.03379313,140.84,140.8,0.80675863]
[1641616859846,4.03379313,140.82,140.76,4.80675863]
[1641616860246,4.03379313,140.84,140.77,0.80675863]
[1641616861648,8.03379313,140.84,140.77,0.80675863]
[1641616861847,4.03379313,140.84,140.77,0.80675863]
[1641616862451,4.03379313,140.84,140.76,0.80675863]
[1641616863249,28.24097171,140.84,140.76,0.80675863]
[1641616864351,33.43897171,140.84,140.76,0.80675863]
[1641616864550,4.0,140.8,140.76,0.80675863]
[1641616864752,27.66479,140.79,140.72,0.80675863]
[1641616865153,4.03379313,140.78,140.72,0.80675863]
[1641616866053,4.03379313,140.82,140.72,0.80675863]
[1641616866352,4.03379313,140.82,140.73,4.0]
[1641616866753,4.03379313,140.82,140.76,27.66479]
[1641616867754,4.03379313,140.82,140.77,0.80675863]
[1641616868556,4.03379313,140.84,140.77,0.80675863]
[1641616868955,4.03379313,140.84,140.76,28.47154863]
[1641616869355,4.03379313,140.84,140.76,0.80675863]
[1641616869556,10.86579313,140.84,140.77,0.80675863]
[1641616869755,4.0,140.8,140.77,0.80675863]
[1641616869959,4.0,140.8,140.76,0.80675863]
[1641616870156,4.0,140.82,140.76,0.80675863]
[1641616870356,4.03379313,140.79,140.71,0.80675863]
[1641616870759,4.03379313,140.79,140.72,7.09698023]
[1641616870958,35.69858313,140.81,140.72,7.09698023]
[1641616871160,31.69858313,140.81,140.72,7.09698023]
[1641616871358,4.03379313,140.8,140.73,0.80675863]
[1641616872761,8.03379313,140.8,140.73,0.80675863]
[1641616873162,4.03379313,140.8,140.73,0.80675863]
[1641616873562,4.03379313,140.79,140.7,0.80675863]
[1641616873962,4.03379313,140.8,140.7,0.80675863]
[1641616874565,18.98156619,140.8,140.71,4.0]
[1641616874766,18.98156619,140.8,140.73,27.66479]
[1641616875166,4.03379313,140.79,140.74,0.80675863]
[1641616876167,4.0,140.76,140.66,82.79113934]
[1641616876467,6.244,140.76,140.7,0.80714775]
[1641616876669,4.0,140.74,140.7,0.80714775]
[1641616876869,27.66479,140.71,140.66,14.94777306]
[1641616877068,35.33979,140.71,140.66,14.94777306]
[1641616877268,7.675,140.71,140.66,18.94777306]
[1641616877468,7.675,140.71,140.65,7.10025561]
[1641616877671,7.675,140.71,140.68,4.0]
[1641616878569,7.675,140.71,140.65,22.04802867]
[1641616879269,7.675,140.71,140.65,14.94777306]
[1641616879470,11.675,140.71,140.65,14.94777306]
[1641616879670,11.675,140.71,140.61,59.74654579]
[1641616880071,4.03688848,140.7,140.62,0.8073777]
[1641616882374,4.0,140.67,140.62,0.8073777]
[1641616882574,4.0,140.66,140.62,0.8073777]
[1641616882875,27.66479,140.65,140.62,0.8073777]
[1641616883476,31.66479,140.65,140.6,0.8073777]
[1641616883875,31.66479,140.65,140.59,0.8073777]
[1641616884076,27.66479,140.65,140.59,0.8073777]
[1641616884677,31.66479,140.65,140.59,0.8073777]
[1641616884976,27.66479,140.65,140.59,0.8073777]
[1641616885177,27.66479,140.65,140.58,7.10403865]
[1641616885379,27.66479,140.65,140.55,55.32958]
[1641616885580,37.66879,140.65,140.55,55.32958]